fUST/lending_fUST_20250114
["ID","MTS","AMOUNT","RATE_DAILY","PERIOD"]
[348834575,1736797832756,-164.0,0.00022,2]
[348834577,1736797832765,-596.62619631,0.00022133,2]
[348834579,1736797832775,-596.62619631,0.00022365,2]
[348834581,1736797832785,-533.301,0.0002245,2]
[348834583,1736797832794,-596.62619631,0.00022598,2]
[348834585,1736797832803,-596.62619631,0.00022831,2]
[348834587,1736797832812,-500.0,0.00022899,7]
[348834589,1736797832822,-1204.18037354,0.000229,2]
[348834897,1736797840893,-1606.81903467,0.000229,2]
[348834899,1736797840906,-189.00059179,0.000229,2]
[348834901,1736797840916,-170.687,0.000229,2]
[348834903,1736797840925,-132.51240821,0.00023,2]
[348834906,1736797840938,-760.70198306,0.00023,2]
[348834909,1736797840964,-6545.48314151,0.00023,2]
[348834911,1736797840973,-7438.69753278,0.00023,2]
[348834913,1736797840983,-7438.69753278,0.00023,3]
[348834915,1736797840992,-838.09746168,0.00023,2]
[348834917,1736797841002,-153.0,0.00023014,2]
[348834919,1736797841011,-306.5773609,0.00023014,2]
[348834921,1736797841022,-306.0,0.00023014,2]
[348834923,1736797841032,-279.2417881,0.00023014,2]
[348834925,1736797841041,-214.9026291,0.00023014,2]
[348834927,1736797841051,-153.0,0.00023014,2]
[348834929,1736797841061,-153.9204537,0.00023014,2]
[348834931,1736797841071,-153.0,0.00023014,2]
[348834933,1736797841083,-214.9026291,0.00023014,2]
[348834935,1736797841093,-153.0,0.00023014,2]
[348834937,1736797841102,-307.8409074,0.00023014,2]
[348834939,1736797841112,-429.8052582,0.00023014,2]
[348834941,1736797841122,-214.9026291,0.00023014,2]
[348834943,1736797841131,-153.9204537,0.00023014,2]
[348834945,1736797841141,-153.0,0.00023014,2]
[348834947,1736797841150,-153.9204537,0.00023014,2]
[348834949,1736797841160,-213.4758891,0.00023014,2]
[348834951,1736797841169,-153.9204537,0.00023014,2]
[348834953,1736797841179,-153.9204537,0.00023014,2]
[348834955,1736797841188,-500.0,0.00023063,2]
[348834957,1736797841198,-500.0,0.00023063,2]
[348834959,1736797841207,-499.82653134,0.00023063,2]
[348834961,1736797841217,-500.0,0.00023063,2]
[348834963,1736797841227,-588.38283434,0.00023063,2]
[348834965,1736797841236,-500.0,0.00023063,2]
[348834967,1736797841246,-500.0,0.00023063,2]
[348834969,1736797841256,-500.0,0.00023063,2]
[348834971,1736797841265,-500.0,0.00023063,2]
[348834973,1736797841275,-500.0,0.00023063,2]
[348834975,1736797841285,-500.0,0.00023063,2]
[348834977,1736797841294,-500.0,0.00023063,2]
[348834979,1736797841303,-500.0,0.00023063,2]
[348834981,1736797841313,-500.0,0.00023063,2]
[348834983,1736797841323,-552.56543624,0.00023063,2]
[348834985,1736797841335,-500.0,0.00023063,2]
[348834987,1736797841345,-500.0,0.00023063,2]
[348834989,1736797841355,-392.55588334,0.00023063,2]
[348834992,1736797841365,-388.20774601,0.00023063,2]
[348834994,1736797841374,-641.20892455,0.00023063,2]
[348834995,1736797841384,-500.0,0.00023063,2]
[348834997,1736797841393,-500.0,0.00023063,2]
[348834999,1736797841403,-500.0,0.00023063,2]
[348835001,1736797841412,-500.0,0.00023063,2]
[348835003,1736797841421,-500.0,0.00023063,2]
[348835005,1736797841431,-500.0,0.00023063,2]
[348835007,1736797841441,-500.0,0.00023063,2]
[348835009,1736797841450,-500.0,0.00023063,2]
[348835011,1736797841460,-500.0,0.00023063,2]
[348835013,1736797841469,-500.0,0.00023063,2]
[348835015,1736797841478,-323.33102986,0.00023063,2]
[348835031,1736797841489,-500.0,0.00023063,2]
[348835033,1736797841633,-500.0,0.00023063,2]
[348835035,1736797841644,-500.0,0.00023063,2]
[348835037,1736797841654,-500.0,0.00023063,2]
[348835039,1736797841665,-500.0,0.00023063,2]
[348835041,1736797841676,-500.0,0.00023063,2]
[348835043,1736797841687,-500.0,0.00023063,2]
[348835044,1736797841697,-500.0,0.00023063,2]
[348835045,1736797841708,-500.0,0.00023063,2]
[348835046,1736797841718,-500.0,0.00023063,2]
[348835047,1736797841729,-500.0,0.00023063,2]
[348835048,1736797841739,-500.0,0.00023063,2]
[348835049,1736797841749,-329.73880175,0.00023063,2]
[348835050,1736797841759,-500.0,0.00023063,2]
[348835051,1736797841769,-500.0,0.00023063,2]
[348835052,1736797841779,-500.0,0.00023063,2]
[348835053,1736797841790,-500.0,0.00023063,2]
[348835054,1736797841800,-500.0,0.00023063,2]
[348835055,1736797841810,-500.0,0.00023063,2]
[348835056,1736797841820,-500.0,0.00023063,2]
[348835057,1736797841830,-500.0,0.00023063,2]
[348835058,1736797841840,-500.0,0.00023063,2]
[348835059,1736797841849,-500.0,0.00023063,2]
[348835060,1736797841859,-500.0,0.00023063,2]
[348835061,1736797841871,-596.62619631,0.00023064,2]
[348835062,1736797841880,-849.8864981,0.00023187,2]
[348835063,1736797841891,-1328.30736028,0.00023187,2]
[348835065,1736797841903,-1671.69263972,0.00023187,2]
[348835068,1736797841914,-5997.12678463,0.00023187,3]
[348835070,1736797841927,-17260.21771524,0.00023187,3]
[348835072,1736797841938,-152.0,0.00023193,2]
[348835074,1736797841949,-849.88649809,0.00023273,2]
[348835076,1736797841959,-500.0,0.00023273,2]
[348835078,1736797841968,-499.0,0.00023286,2]
[348835080,1736797841978,-175.54000787,0.00023286,2]
[348835082,1736797841988,-504.96294223,0.00023287,3]
[348835084,1736797841998,-500.0,0.00023287,3]
[348835086,1736797842007,-483.97236237,0.00023287,3]
[348835088,1736797842018,-500.0,0.00023287,3]
[348835090,1736797842028,-333.06673256,0.00023287,3]
[348835092,1736797842037,-500.0,0.00023287,3]
[348835094,1736797842047,-611.10010535,0.00023287,3]
[348835096,1736797842056,-500.0,0.00023287,3]
[348835098,1736797842066,-500.0,0.00023287,3]
[348835100,1736797842076,-500.0,0.00023287,3]
[348835103,1736797842088,-639.96,0.00023287,3]
[348835105,1736797842097,-639.96,0.00023287,3]
[348835107,1736797842107,-639.96,0.00023287,3]
[348835109,1736797842116,-639.96,0.00023287,3]
[348835110,1736797842125,-639.96,0.00023287,3]
[348835113,1736797842136,-639.96,0.00023287,3]
[348835115,1736797842145,-500.0,0.00023287,3]
[348835116,1736797842155,-639.96,0.00023287,3]
[348835118,1736797842164,-639.96,0.00023287,3]
[348835121,1736797842174,-639.96,0.00023287,3]
[348835123,1736797842184,-500.0,0.00023287,3]
[348835125,1736797842193,-639.96,0.00023287,3]
[348835127,1736797842203,-639.96,0.00023287,3]
[348835129,1736797842212,-639.96,0.00023287,3]
[348835131,1736797842222,-639.96,0.00023287,3]
[348835133,1736797842231,-511.74872954,0.00023287,3]
[348835136,1736797842256,-128.21127046,0.00023287,3]
[348835138,1736797842267,-408.83344372,0.00023287,3]
[348835262,1736797843377,-91.16655628,0.00023287,3]
[348835263,1736797843388,-639.96,0.00023287,3]
[348835264,1736797843398,-526.48552972,0.00023287,3]
[348835265,1736797843590,-113.47447028,0.00023287,3]
[348835266,1736797843601,-401.02552972,0.00023287,3]
[348835267,1736797843618,-238.93447028,0.00023287,3]
[348835268,1736797843628,-20.06552972,0.00023287,3]
[348835269,1736797843640,-619.89447028,0.00023287,3]
[348835271,1736797843650,-639.96,0.00023287,3]
[348835273,1736797843659,-639.96,0.00023287,3]
[348835275,1736797843671,-639.96,0.00023287,3]
[348835277,1736797843680,-639.96,0.00023287,3]
[348835279,1736797843689,-630.90791344,0.00023287,3]
[348835374,1736797846547,-9.05208656,0.00023287,3]
[348835376,1736797846557,-490.74791344,0.00023287,3]
[348835384,1736797846625,-9.25208656,0.00023287,3]
[348835385,1736797846635,-640.19766757,0.00023287,3]
[348835386,1736797846644,-77.52024587,0.00023287,3]
[348835387,1736797846656,-333.3549995,0.00023287,3]
[348835724,1736797920842,79000.0,0.00024,30]
[348835727,1736798157122,528.0,0.00024,30]
[348835728,1736798287353,157.96274,0.00013973,2]
[348835729,1736798395316,2686.91,0.000237,30]
[348835731,1736798825209,-496.59210639,0.00020243,2]
[348835732,1736798830095,-566.90413778,0.00020243,2]
[348835734,1736798839142,-979.33538568,0.00020243,2]
[348835735,1736798852109,-2957.16837015,0.00020243,2]
[348835736,1736798852132,-314.55779548,0.00020447,2]
[348835737,1736798852154,-604.80965965,0.00020547,2]
[348835738,1736798852180,-3151.04848513,0.00020982,2]
[348835739,1736798852205,-1397.97738067,0.00020985,2]
[348837676,1736799196510,157.937614,0.00013973,2]
[348837684,1736800025104,-487.41018101,0.000189,2]
[348837685,1736800025126,-131.47867277,0.00019294,2]
[348837686,1736800036142,-196.04768923,0.00019294,2]
[348837687,1736800036164,-439.53160984,0.00019755,2]
[348837688,1736800036187,-300.0,0.00019846,2]
[348837689,1736800036210,-4790.93884014,0.00019847,2]
[348837690,1736800043124,-549.13532261,0.00019847,2]
[348837691,1736800046180,-760.15807363,0.00019847,2]
[348837693,1736800050091,-622.8342662,0.00019847,2]
[348837694,1736800099389,265.24965738,0.000125,2]
[348837701,1736800170169,-637.98,0.000189,2]
[348837728,1736800232666,-47.09960689,0.000189,2]
[348837729,1736800232676,-300.0,0.00019853,2]
[348837730,1736800232688,-102.47039311,0.00019853,2]
[348837731,1736800232721,-266.78861021,0.00019853,2]
[348837732,1736800232731,-154.72843148,0.00019853,2]
[348837733,1736800232741,-412.94049212,0.00019853,2]
[348837734,1736800232752,-87.05950788,0.00019853,2]
[348837735,1736800232764,-500.0,0.00019853,2]
[348837736,1736800232778,-312.39609782,0.00019853,2]
[348837737,1736800232789,-187.60390218,0.00019853,2]
[348837738,1736800232799,-334.94766036,0.00019853,2]
[348837739,1736800232808,-428.29087547,0.00019853,2]
[348837741,1736800232820,-52.79121361,0.00019853,2]
[348837743,1736800232829,-197.77257511,0.00019854,5]
[348837745,1736800232840,-853.9555,0.00019854,5]
[348837798,1736800238557,-11853.20694217,0.00019854,5]
[348837800,1736800238569,-1883.47046116,0.00019854,5]
[348837802,1736800238581,-7697.32983,0.00019854,5]
[348837804,1736800238593,-404.75567804,0.00019854,5]
[348838036,1736800240599,-8226.45679231,0.00019854,5]
[348838038,1736800240611,-3512.41320769,0.00019854,5]
[348838047,1736800240659,-1127.7,0.00019854,5]
[348838337,1736800243517,-810.54147823,0.00019854,5]
[348838368,1736800243798,-49392.9136921,0.00019854,5]
[348838370,1736800243808,-7835.45870816,0.00019854,5]
[348838561,1736800246777,-15981.57680436,0.00019854,5]
[348838562,1736800246787,-264.28343712,0.00019999,2]
[348838563,1736800246796,-691.0,0.0002,3]
[348838564,1736800246806,-688.0,0.0002,3]
[348838565,1736800246815,-688.0,0.0002,3]
[348838566,1736800246825,-688.0,0.0002,3]
[348838567,1736800246835,-1812.10837508,0.0002,5]
[348838586,1736800710448,157.937614,0.00013973,2]
[348838592,1736801228141,-283.704051,0.00018685,2]
[348838593,1736801228169,-456.71973792,0.000189,2]
[348838594,1736801228191,-300.0,0.0001896,2]
[348838595,1736801228212,-1895.78573893,0.00018961,2]
[348838598,1736801346213,-994.51069518,0.00018485,2]
[348838599,1736801346235,-499.50363533,0.00018585,2]
[348838600,1736801346256,-416.87511098,0.000189,2]
[348838601,1736801346278,-300.0,0.0001896,2]
[348838602,1736801346300,-21700.0,0.0001896,2]
[348838603,1736801346321,-7040.34880156,0.00018961,2]
[348838711,1736801436376,-270.15241123,0.00019,2]
[348838714,1736801436387,-302.60665372,0.00019,2]
[348838716,1736801436397,-302.60665372,0.0001919,2]
[348838718,1736801436407,-302.60665372,0.0001938,2]
[348838720,1736801436417,-158.24408484,0.0001957,2]
[348838722,1736801436427,-384.59015861,0.000197,2]
[348838724,1736801436437,-10639.18881017,0.00019786,2]
[348838726,1736801436447,-695.108317,0.000198,2]
[348838728,1736801436457,-500.0,0.00019854,7]
[348838730,1736801436470,-363.36418533,0.00019973,2]
[348838732,1736801436480,-151.21918854,0.00019973,2]
[348838734,1736801436490,-151.21196176,0.00019973,2]
[348838748,1736801436615,-575.32400458,0.00019973,2]
[348838750,1736801436625,-615.31913201,0.00019973,2]
[348838752,1736801436635,-288.24883383,0.00019973,2]
[348838754,1736801436644,-500.0,0.00019973,2]
[348838756,1736801436654,-500.0,0.00019973,2]
[348838758,1736801436664,-162.27266989,0.00019973,2]
[348838760,1736801436674,-202.13570833,0.00019973,2]
[348838762,1736801436683,-154.18,0.00019999,2]
[348838764,1736801436693,-182.208,0.00019999,2]
[348838766,1736801436703,-500.0,0.00019999,2]
[348838768,1736801436715,-500.0,0.00019999,2]
[348838770,1736801436724,-500.0,0.00019999,2]
[348838772,1736801436734,-500.0,0.00019999,2]
[348838774,1736801436743,-486.43122334,0.00019999,2]
[348838776,1736801436753,-500.0,0.00019999,2]
[348838778,1736801436763,-349.92155524,0.00019999,2]
[348838780,1736801436773,-37495.86355583,0.0002,5]
[348838789,1736801436846,-5484.39452257,0.0002,5]
[348838791,1736801436856,-11908.51775626,0.0002,5]
[348838793,1736801436866,-7276.29503427,0.0002,5]
[348838796,1736801436877,-830.85357572,0.0002,5]
[348838999,1736801438990,-1768.0,0.0002,5]
[348839191,1736801440833,-18427.666402,0.0002,5]
[348839197,1736801440886,-1347.2624374,0.0002,5]
[348839200,1736801440898,-2909.40573305,0.0002,5]
[348839480,1736801443810,-8491.72675834,0.0002,5]
[348840183,1736802148376,159.501593,0.00013973,2]
[348840188,1736802437153,-501.84642801,0.00018143,2]
[348840189,1736802438107,-4498.15357199,0.00018143,2]
[348840190,1736802438130,-622.901359,0.00018327,2]
[348840191,1736802438156,-228.392162,0.00018896,2]
[348840192,1736802438178,-1505.29973004,0.000189,2]
[348840193,1736802438201,-277.91674066,0.000189,2]
[348840194,1736802438224,-500.0,0.00018968,2]
[348840195,1736802438246,-243.96291106,0.00018999,2]
[348840196,1736802438276,-56.03708894,0.00018999,2]
[348840197,1736802438299,-1165.74046942,0.00019,7]
[348840198,1736802444093,-566.90413778,0.00019,7]
[348840208,1736802574148,-150.0,0.000189,2]
[348840209,1736802574172,-300.0,0.00018907,2]
[348840210,1736802574194,-10354.28693514,0.00018908,2]
[348840267,1736802636639,-4074.58167497,0.00019,7]
[348840269,1736802636650,-302.96970909,0.00019,2]
[348840271,1736802636659,-190.8002399,0.00019178,2]
[348840273,1736802636669,-500.0,0.00019274,7]
[348840275,1736802636679,-336.51638874,0.000193,2]
[348840277,1736802636689,-208.0,0.00019379,2]
[348840279,1736802636698,-220.058,0.000194,2]
[348840281,1736802636708,-500.0,0.00019451,2]
[348840283,1736802636718,-10338.84551739,0.00019574,2]
[348840285,1736802636728,-10338.84551739,0.00019765,2]
[348840287,1736802636737,-257.87651547,0.00019798,2]
[348840289,1736802636747,-152.0,0.00019858,2]
[348840291,1736802636757,-3863.48216854,0.000199,2]
[348840293,1736802636766,-267.263959,0.000199,2]
[348840295,1736802636776,-267.263959,0.000199,2]
[348840297,1736802636785,-336.51638874,0.0001991,2]
[348840299,1736802636798,-1053.253,0.0001994,2]
[348840301,1736802636807,-500.0,0.00019959,9]
[348840303,1736802636817,-151.0,0.00019995,2]
[348840305,1736802636826,-267.263959,0.00019995,2]
[348840307,1736802636836,-269.411578,0.00019995,2]
[348840309,1736802636846,-269.411578,0.00019995,2]
[348840311,1736802636855,-151.0,0.00019995,2]
[348840313,1736802636864,-267.263959,0.00019995,2]
[348840315,1736802636874,-151.0,0.00019995,2]
[348840317,1736802636883,-151.0,0.00019995,2]
[348840319,1736802636892,-155.477722,0.00019997,2]
[348840321,1736802636903,-590.125334,0.00019997,2]
[348840323,1736802636913,-590.125334,0.00019997,2]
[348840325,1736802636923,-151.0,0.00019997,2]
[348840327,1736802636932,-151.0,0.00019997,2]
[348840329,1736802636942,-151.0,0.00019997,2]
[348840332,1736802636951,-151.0,0.00019997,2]
[348840334,1736802636961,-267.263959,0.00019997,2]
[348840336,1736802636971,-267.263959,0.00019997,2]
[348840338,1736802636982,-335.752034,0.00019997,2]
[348840340,1736802636991,-335.752034,0.00019997,2]
[348840342,1736802637000,-151.0,0.00019997,2]
[348840344,1736802637010,-151.0,0.00019997,2]
[348840346,1736802637020,-181.441042,0.00019998,2]
[348840348,1736802637029,-151.0,0.00019998,2]
[348840350,1736802637039,-181.441042,0.00019998,2]
[348840353,1736802637061,-151.0,0.00019998,2]
[348840355,1736802637072,-151.0,0.00019998,2]
[348840357,1736802637083,-151.0,0.00019998,2]
[348840359,1736802637094,-464.84987,0.00019998,2]
[348840362,1736802637105,-464.84987,0.00019998,2]
[348840364,1736802637116,-151.0,0.00019998,2]
[348840366,1736802637126,-151.0,0.00019998,2]
[348840368,1736802637136,-151.0,0.00019998,2]
[348840370,1736802637146,-166.353903,0.00019998,2]
[348840372,1736802637156,-166.353903,0.00019998,2]
[348840374,1736802637166,-151.0,0.00019998,2]
[348840376,1736802637176,-269.411578,0.00019998,2]
[348840378,1736802637187,-269.411578,0.00019998,2]
[348840381,1736802637197,-151.0,0.00019998,2]
[348840383,1736802637207,-151.0,0.00019998,2]
[348840385,1736802637218,-334.86874411,0.00019998,2]
[348840387,1736802637228,-151.0,0.00019998,2]
[348840389,1736802637238,-335.752034,0.00019998,2]
[348840391,1736802637248,-335.752034,0.00019998,2]
[348840393,1736802637258,-151.0,0.00019998,2]
[348840395,1736802637268,-151.0,0.00019998,2]
[348840397,1736802637278,-166.19952704,0.00019999,2]
[348840400,1736802637288,-480.22770746,0.00019999,2]
[348840402,1736802637299,-500.0,0.00019999,2]
[348840405,1736802637310,-216.90906183,0.00019999,2]
[348840407,1736802637320,-555.64765352,0.00019999,2]
[348840409,1736802637330,-500.0,0.00019999,2]
[348840411,1736802637340,-500.0,0.00019999,2]
[348840414,1736802637349,-500.0,0.00019999,2]
[348840417,1736802637360,-500.0,0.00019999,2]
[348840419,1736802637373,-500.0,0.00019999,2]
[348840422,1736802637383,-500.0,0.00019999,2]
[348840425,1736802637393,-500.0,0.00019999,2]
[348840428,1736802637403,-500.0,0.00019999,2]
[348840430,1736802637413,-500.0,0.00019999,2]
[348840432,1736802637423,-500.0,0.00019999,2]
[348840454,1736802637571,-500.0,0.00019999,2]
[348840457,1736802637582,-500.0,0.00019999,2]
[348840459,1736802637592,-176.87137096,0.00019999,2]
[348840461,1736802637602,-500.0,0.00019999,2]
[348840463,1736802637612,-500.0,0.00019999,2]
[348840465,1736802637622,-500.0,0.00019999,2]
[348840467,1736802637632,-500.0,0.00019999,2]
[348840469,1736802637642,-500.0,0.00019999,2]
[348840471,1736802637652,-500.0,0.00019999,2]
[348840473,1736802637662,-500.0,0.00019999,2]
[348840475,1736802637671,-500.0,0.00019999,2]
[348840477,1736802637681,-500.0,0.00019999,2]
[348840479,1736802637691,-500.0,0.00019999,2]
[348840481,1736802637700,-500.0,0.00019999,2]
[348840483,1736802637709,-500.0,0.00019999,2]
[348840485,1736802637720,-500.0,0.00019999,2]
[348840487,1736802637730,-500.0,0.00019999,2]
[348840489,1736802637739,-500.0,0.00019999,2]
[348840491,1736802637749,-500.0,0.00019999,2]
[348840493,1736802637759,-194.31508101,0.00019999,2]
[348840495,1736802637769,-500.0,0.00019999,2]
[348840498,1736802637778,-500.0,0.00019999,2]
[348840500,1736802637788,-500.0,0.00019999,2]
[348840501,1736802637798,-500.0,0.00019999,2]
[348840504,1736802637808,-500.0,0.00019999,2]
[348840506,1736802637817,-500.0,0.00019999,2]
[348840508,1736802637826,-500.0,0.00019999,2]
[348840510,1736802637835,-500.0,0.00019999,2]
[348840512,1736802637845,-500.0,0.00019999,2]
[348840514,1736802637855,-500.0,0.00019999,2]
[348840516,1736802637864,-500.0,0.00019999,2]
[348840518,1736802637874,-500.0,0.00019999,2]
[348840520,1736802637884,-500.0,0.00019999,2]
[348840522,1736802637894,-180.429514,0.00019999,2]
[348840524,1736802637904,-500.0,0.00019999,2]
[348840526,1736802637914,-500.0,0.00019999,2]
[348840528,1736802637924,-500.0,0.00019999,2]
[348840530,1736802637934,-500.0,0.00019999,2]
[348840532,1736802637943,-499.0,0.00019999,2]
[348840534,1736802637952,-588.27183784,0.00019999,2]
[348840536,1736802637962,-205.2282882,0.00019999,2]
[348840538,1736802637971,-23784.541061,0.0002,5]
[348840540,1736802637981,-6098.85686288,0.0002,5]
[348840542,1736802637991,-51033.61869442,0.0002,5]
[348840544,1736802638001,-2927.59,0.0002,10]
[348840546,1736802638011,-151.0,0.0002,2]
[348840548,1736802638020,-151.0,0.0002,2]
[348840550,1736802638031,-211.373992,0.0002,2]
[348840552,1736802638041,-151.0,0.0002,2]
[348840554,1736802638050,-151.0,0.0002,2]
[348840556,1736802638060,-151.0,0.0002,2]
[348840558,1736802638071,-152.972493,0.0002,2]
[348840560,1736802638081,-151.0,0.0002,2]
[348840562,1736802638090,-282.716921,0.0002,2]
[348840564,1736802638100,-282.716921,0.0002,2]
[348840566,1736802638110,-282.716921,0.0002,2]
[348840568,1736802638119,-282.716921,0.0002,2]
[348840570,1736802638129,-151.0,0.0002,2]
[348840572,1736802638138,-151.0,0.0002,2]
[348840574,1736802638148,-151.0,0.0002,2]
[348840576,1736802638159,-151.0,0.0002,2]
[348840578,1736802638169,-151.0,0.0002,2]
[348840580,1736802638179,-165.681604,0.0002,2]
[348840582,1736802638189,-165.681604,0.0002,2]
[348840584,1736802638199,-216.3454,0.0002,2]
[348840586,1736802638209,-216.3454,0.0002,2]
[348840588,1736802638219,-151.0,0.0002,2]
[348840590,1736802638229,-151.0,0.0002,2]
[348840593,1736802638239,-151.0,0.0002,2]
[348840597,1736802638249,-151.0,0.0002,2]
[348840599,1736802638259,-5793.0,0.0002,2]
[348840602,1736802638269,-181.441042,0.0002,2]
[348840604,1736802638279,-181.441042,0.0002,2]
[348840606,1736802638288,-151.0,0.0002,2]
[348840607,1736802638302,-464.84987,0.0002,2]
[348840609,1736802638312,-464.84987,0.0002,2]
[348840610,1736802638321,-151.0,0.0002,2]
[348840611,1736802638330,-151.0,0.0002,2]
[348840612,1736802638339,-590.125334,0.0002,2]
[348840613,1736802638349,-590.125334,0.0002,2]
[348840614,1736802638358,-590.125334,0.0002,2]
[348840615,1736802638369,-590.125334,0.0002,2]
[348840616,1736802638379,-151.0,0.0002,2]
[348840617,1736802638388,-151.0,0.0002,2]
[348840618,1736802638398,-151.0,0.0002,2]
[348840619,1736802638409,-151.0,0.0002,2]
[348840620,1736802638418,-151.0,0.0002,2]
[348840621,1736802638427,-151.0,0.0002,2]
[348840622,1736802638436,-151.0,0.0002,2]
[348840623,1736802638446,-151.0,0.0002,2]
[348840624,1736802638456,-151.0,0.0002,2]
[348840625,1736802638466,-167.89219,0.0002,2]
[348840626,1736802638475,-151.0,0.0002,2]
[348840627,1736802638484,-151.0,0.0002,2]
[348840628,1736802638495,-166.353903,0.0002,2]
[348840629,1736802638504,-166.353903,0.0002,2]
[348840630,1736802638513,-151.0,0.0002,2]
[348840631,1736802638523,-267.263959,0.0002,2]
[348840633,1736802638533,-267.263959,0.0002,2]
[348840634,1736802638543,-269.411578,0.0002,2]
[348840637,1736802638553,-267.263959,0.0002,2]
[348840639,1736802638562,-269.411578,0.0002,2]
[348840641,1736802638572,-269.411578,0.0002,2]
[348840642,1736802638582,-269.411578,0.0002,2]
[348840644,1736802638592,-269.411578,0.0002,2]
[348840646,1736802638601,-151.0,0.0002,2]
[348840649,1736802638611,-269.411578,0.0002,2]
[348840651,1736802638621,-267.263959,0.0002,2]
[348840653,1736802638631,-267.263959,0.0002,2]
[348840655,1736802638641,-151.0,0.0002,2]
[348840657,1736802638650,-151.0,0.0002,2]
[348840659,1736802638659,-267.263959,0.0002,2]
[348840661,1736802638669,-151.0,0.0002,2]
[348840663,1736802638678,-151.0,0.0002,2]
[348840665,1736802638689,-205.54055,0.0002,2]
[348840667,1736802638699,-335.752034,0.0002,2]
[348840669,1736802638709,-335.752034,0.0002,2]
[348840671,1736802638718,-335.752034,0.0002,2]
[348840682,1736802638805,-335.752034,0.0002,2]
[348840685,1736802638824,-335.752034,0.0002,2]
[348840687,1736802638835,-335.752034,0.0002,2]
[348840689,1736802638844,-151.0,0.0002,2]
[348840691,1736802638853,-151.0,0.0002,2]
[348840693,1736802638863,-151.0,0.0002,2]
[348840695,1736802638872,-151.0,0.0002,2]
[348840697,1736802638882,-257.87651547,0.00020109,2]
[348840699,1736802638891,-151.0,0.00020311,2]
[348840701,1736802638901,-151.0,0.00020311,2]
[348840703,1736802638910,-174.565873,0.00020318,2]
[348840705,1736802638919,-174.565873,0.00020318,2]
[348840707,1736802638928,-166.353903,0.00020318,2]
[348840709,1736802638938,-166.353903,0.00020318,2]
[348840711,1736802638948,-151.0,0.00020318,2]
[348840713,1736802638957,-151.0,0.00020369,2]
[348840715,1736802638966,-151.0,0.00020369,2]
[348840717,1736802638975,-181.441042,0.00020379,2]
[348840718,1736802638985,-181.441042,0.00020379,2]
[348840720,1736802638994,-464.84987,0.00020379,2]
[348840722,1736802639004,-464.84987,0.00020379,2]
[348840724,1736802639013,-257.87651547,0.00020419,2]
[348840726,1736802639023,-10338.84551739,0.00020489,2]
[348840728,1736802639033,-336.51638874,0.00020519,2]
[348840730,1736802639044,-172.846506,0.00020521,2]
[348840732,1736802639053,-165.681604,0.00020539,2]
[348840734,1736802639062,-165.681604,0.00020539,2]
[348840736,1736802639072,-590.125334,0.00020539,2]
[348840738,1736802639082,-590.125334,0.00020539,2]
[348840740,1736802639091,-151.0,0.00020539,2]
[348840742,1736802639100,-151.0,0.00020539,2]
[348840744,1736802639109,-151.0,0.00020539,2]
[348840746,1736802639119,-166.353903,0.00020539,2]
[348840748,1736802639128,-166.353903,0.00020539,2]
[348840750,1736802639138,-216.3454,0.00020542,2]